[Event "3rd FIDE WCCC Blitz G12 2019"]
[Site "Minsk"]
[Date "2019.08.18"]
[Round "4.6"]
[White "Kirdyashkina, Ekaterina"]
[Black "Dalatsenka, Volha"]
[Result "1-0"]
[ECO "B06"]
[WhiteElo "1691"]
[BlackElo "1380"]
[Annotator "NA"]
[PlyCount "177"]
[EventDate "2019.08.18"]
[EventType "swiss"]
[EventCountry "BLR"]
[SourceTitle "playchess.com"]
[Source "ChessBase"]
[SourceQuality "1"]
[TimeControl "300+2"]

1. e4 {[%emt 0:00:00]} g6 {[%emt 0:00:00]} 2. d4 {[%emt 0:00:00]} Bg7 {[%emt 0:00:00]} 3. Nc3 {[%emt 0:00:02]} c6 {[%emt 0:00:06]} 4. Nf3 {[%emt 0:00:03]} Nf6 {[%emt 0:00:02]} 5. g3 {[%emt 0:00:03]} O-O {[%emt 0:00:03]} 6. Bg2 {[%emt 0:00:02]} d5 {[%emt 0:00:04]} 7. e5 {[%emt 0:00:04]} Nfd7 {[%emt 0:00:12]} 8. O-O {[%emt 0:00:03]} Nb6 {[%emt 0:00:15]} 9. Re1 {[%emt 0:00:09]} e6 {[%emt 0:00:01]} 10. Bg5 {[%emt 0:00:03]} f6 {[%emt 0:00:12]} 11. exf6 Bxf6 {[%emt 0:00:00]} 12. Bh6 {[%emt 0:00:10]} Bg7 {[%emt 0:00:03]} 13. Bxg7 Kxg7 {[%emt 0:00:01]} 14. Ne5 {[%emt 0:00:17]} Qf6 {[%emt 0:00:21]} 15. Qd2 {[%emt 0:00:01]} N8d7 {[%emt 0:00:09]} 16. Ng4 {[%emt 0:00:06]} Qf7 {[%emt 0:00:09]} 17. Qh6+ {[%emt 0:00:03]} Kg8 {[%emt 0:00:01]} 18. Qg5 {[%emt 0:00:32]} Kh8 {[%emt 0:00:32]} 19. Re2 {[%emt 0:00:52]} Nf6 {[%emt 0:00:09]} 20. Ne5 {[%emt 0:00:01]} Qg7 {[%emt 0:00:12]} 21. Rf1 {[%emt 0:00:18]} Re8 {[%emt 0:00:52]} 22. h4 {[%emt 0:00:37]} Nbd7 {[%emt 0:00:11]} 23. Bh3 {[%emt 0:00:10]} Nxe5 {[%emt 0:00:10]} 24. dxe5 {[%emt 0:00:05]} Nd7 {[%emt 0:00:13]} 25. Kh2 {[%emt 0:00:25]} Qe7 {[%emt 0:00:02]} 26. Qg4 {[%emt 0:00:06]} Qg7 {[%emt 0:00:16]} 27. f4 {[%emt 0:00:14]} b6 {[%emt 0:00:16]} 28. a3 {[%emt 0:00:17]} Ba6 {[%emt 0:00:02]} 29. Rh1 {[%emt 0:00:05]} Bxe2 {[%emt 0:00:03]} 30. Nxe2 {[%emt 0:00:03]} Nc5 {[%emt 0:00:13]} 31. Nd4 {[%emt 0:00:01]} Qf7 {[%emt 0:00:13]} 32. Qe2 {[%emt 0:00:11]} Ne4 {[%emt 0:00:07]} 33. Nxc6 {[%emt 0:00:13]} Rac8 {[%emt 0:00:07]} 34. Nd4 {[%emt 0:00:01]} Rc4 {[%emt 0:00:06]} 35. c3 {[%emt 0:00:01]} a6 36. Kg2 {[%emt 0:00:04]} b5 {[%emt 0:00:11]} 37. Bg4 {[%emt 0:00:04]} h5 {[%emt 0:00:10]} 38. Bf3 {[%emt 0:00:01]} Qe7 {[%emt 0:00:08]} 39. Bxe4 {[%emt 0:00:06]} dxe4 {[%emt 0:00:01]} 40. Qxe4 {[%emt 0:00:01]} Qf7 {[%emt 0:00:03]} 41. Rf1 {[%emt 0:00:07]} Kg7 {[%emt 0:00:06]} 42. Rd1 {[%emt 0:00:01]} Kh8 {[%emt 0:00:10]} 43. Qe3 {[%emt 0:00:03]} Rcc8 {[%emt 0:00:05]} 44. Nf3 {[%emt 0:00:03]} Qb7 {[%emt 0:00:04]} 45. Kh2 {[%emt 0:00:06]} Rcd8 {[%emt 0:00:00]} 46. Nd4 {[%emt 0:00:06]} Qf7 {[%emt 0:00:02]} 47. Re1 {[%emt 0:00:03]} Qe7 {[%emt 0:00:03]} 48. Qe4 {[%emt 0:00:02]} Qf7 {[%emt 0:00:02]} 49. Re2 {[%emt 0:00:02]} Rc8 {[%emt 0:00:02]} 50. Qe3 {[%emt 0:00:05]} Rcd8 {[%emt 0:00:02]} 51. Qc1 {[%emt 0:00:03]} Rc8 {[%emt 0:00:02]} 52. Qc2 {[%emt 0:00:01]} Rcd8 {[%emt 0:00:01]} 53. Qb3 {[%emt 0:00:01]} Rc8 {[%emt 0:00:04]} 54. Qb4 {[%emt 0:00:01]} Rc4 {[%emt 0:00:03]} 55. Qd6 {[%emt 0:00:08]} a5 {[%emt 0:00:03]} 56. Qb6 {[%emt 0:00:02]} b4 {[%emt 0:00:03]} 57. axb4 {[%emt 0:00:07]} axb4 {[%emt 0:00:00]} 58. Qb5 {[%emt 0:00:01]} Rcc8 {[%emt 0:00:03]} 59. Qxb4 {[%emt 0:00:01]} Rb8 {[%emt 0:00:01]} 60. Qc4 {[%emt 0:00:01]} Rbc8 {[%emt 0:00:03]} 61. Qd3 {[%emt 0:00:01]} Rcd8 {[%emt 0:00:02]} 62. b4 {[%emt 0:00:02]} Rc8 {[%emt 0:00:02]} 63. b5 {[%emt 0:00:01]} Rb8 {[%emt 0:00:01]} 64. Rb2 {[%emt 0:00:02]} Qd7 {[%emt 0:00:03]} 65. Qxg6 {[%emt 0:00:03]} Qg7 {[%emt 0:00:04]} 66. Qxh5+ {[%emt 0:00:02]} Kg8 {[%emt 0:00:01]} 67. Qg5 {[%emt 0:00:06]} Qxg5 {[%emt 0:00:01]} 68. hxg5 {[%emt 0:00:01]} Rec8 {[%emt 0:00:01]} 69. Rb3 {[%emt 0:00:02]} Kf7 {[%emt 0:00:01]} 70. g4 {[%emt 0:00:02]} Rc7 {[%emt 0:00:02]} 71. f5 exf5 {[%emt 0:00:01]} 72. gxf5 {[%emt 0:00:03]} Rc5 {[%emt 0:00:01]} 73. e6+ {[%emt 0:00:02]} Ke7 {[%emt 0:00:02]} 74. f6+ {[%emt 0:00:00]} Kf8 {[%emt 0:00:01]} 75. g6 {[%emt 0:00:01]} Rh5+ {[%emt 0:00:01]} 76. Kg3 {[%emt 0:00:01]} Rg5+ 77. Kf4 {[%emt 0:00:02]} Rxg6 {[%emt 0:00:03]} 78. Kf5 {[%emt 0:00:01]} Rg1 {[%emt 0:00:01]} 79. c4 {[%emt 0:00:02]} Rf1+ {[%emt 0:00:01]} 80. Rf3 {[%emt 0:00:01]} Rxf3+ {[%emt 0:00:04]} 81. Nxf3 {[%emt 0:00:01]} Rc8 {[%emt 0:00:01]} 82. Ne5 {[%emt 0:00:01]} Rc7 {[%emt 0:00:03]} 83. b6 {[%emt 0:00:01]} Rb7 {[%emt 0:00:03]} 84. c5 {[%emt 0:00:01]} Ke8 {[%emt 0:00:03]} 85. c6 {[%emt 0:00:01]} Rxb6 {[%emt 0:00:02]} 86. e7 {[%emt 0:00:06]} Rb5 {[%emt 0:00:03]} 87. c7 {[%emt 0:00:02]} Rc5 {[%emt 0:00:03]} 88. Ke6 {[%emt 0:00:12]} Rxc7 {[%emt 0:00:07]} 89. f7# {[%emt 0:00:01]} 1-0

[Event "3rd FIDE WCCC Blitz G12 2019"]
[Site "Minsk"]
[Date "2019.08.18"]
[Round "5.1"]
[White "Vlasova, Olesia"]
[Black "Vu, My Linh"]
[Result "0-1"]
[ECO "E62"]
[WhiteElo "1799"]
[BlackElo "1467"]
[Annotator "NA"]
[PlyCount "108"]
[EventDate "2019.08.18"]
[EventType "swiss"]
[EventCountry "BLR"]
[SourceTitle "playchess.com"]
[Source "ChessBase"]
[SourceQuality "1"]
[TimeControl "300+2"]

1. Nf3 {[%emt 0:00:00]} Nf6 {[%emt 0:00:00]} 2. c4 {[%emt 0:00:01]} g6 {[%emt 0:00:00]} 3. g3 {[%emt 0:00:01]} Bg7 {[%emt 0:00:01]} 4. Bg2 {[%emt 0:00:01]} d6 {[%emt 0:00:02]} 5. d4 {[%emt 0:00:01]} O-O {[%emt 0:00:02]} 6. O-O {[%emt 0:00:01]} Nc6 {[%emt 0:00:02]} 7. Nc3 {[%emt 0:00:06]} e5 {[%emt 0:00:01]} 8. d5 {[%emt 0:00:01]} Ne7 {[%emt 0:00:01]} 9. c5 {[%emt 0:00:02]} Nd7 {[%emt 0:00:07]} 10. cxd6 {[%emt 0:00:05]} cxd6 {[%emt 0:00:02]} 11. e4 {[%emt 0:00:27]} a6 {[%emt 0:00:06]} 12. a4 {[%emt 0:00:08]} h6 {[%emt 0:00:12]} 13. Nd2 {[%emt 0:00:30]} f5 {[%emt 0:00:07]} 14. Nc4 {[%emt 0:00:05]} Nb6 {[%emt 0:00:09]} 15. Qe2 {[%emt 0:00:25]} Nxc4 16. Qxc4 {[%emt 0:00:01]} b5 {[%emt 0:00:37]} 17. Qe2 {[%emt 0:00:26]} b4 {[%emt 0:00:13]} 18. Nd1 {[%emt 0:00:34]} a5 {[%emt 0:00:02]} 19. Re1 {[%emt 0:00:32]} Ba6 {[%emt 0:00:04]} 20. Qd2 {[%emt 0:00:25]} f4 {[%emt 0:00:05]} 21. f3 {[%emt 0:00:46]} Rc8 {[%emt 0:00:21]} 22. Nf2 {[%emt 0:00:15]} g5 {[%emt 0:00:16]} 23. Bh3 {[%emt 0:00:14]} Rc7 {[%emt 0:00:04]} 24. Be6+ {[%emt 0:00:03]} Kh8 {[%emt 0:00:05]} 25. Kg2 {[%emt 0:00:12]} Bc8 {[%emt 0:00:02]} 26. Bxc8 Qxc8 {[%emt 0:00:01]} 27. Qd3 {[%emt 0:00:13]} Ng6 {[%emt 0:00:10]} 28. Bd2 {[%emt 0:00:04]} Qd7 {[%emt 0:00:12]} 29. b3 {[%emt 0:00:04]} Rfc8 {[%emt 0:00:01]} 30. Rac1 {[%emt 0:00:03]} h5 {[%emt 0:00:08]} 31. Rxc7 {[%emt 0:00:03]} Rxc7 {[%emt 0:00:02]} 32. Rc1 {[%emt 0:00:02]} Rxc1 {[%emt 0:01:04]} 33. Bxc1 {[%emt 0:00:00]} g4 {[%emt 0:00:01]} 34. Bd2 {[%emt 0:00:05]} gxf3+ 35. Kxf3 {[%emt 0:00:01]} Qf7 {[%emt 0:00:17]} 36. Kg2 {[%emt 0:00:03]} h4 {[%emt 0:00:03]} 37. g4 {[%emt 0:00:03]} Bh6 {[%emt 0:00:05]} 38. Qf3 {[%emt 0:00:03]} Bg5 {[%emt 0:00:04]} 39. h3 {[%emt 0:00:01]} Kg7 {[%emt 0:00:01]} 40. Kf1 {[%emt 0:00:04]} Qc7 {[%emt 0:00:01]} 41. Ke2 {[%emt 0:00:05]} Qc2 {[%emt 0:00:01]} 42. Nd1 {[%emt 0:00:03]} Bd8 {[%emt 0:00:19]} 43. Nf2 {[%emt 0:00:02]} Bb6 {[%emt 0:00:03]} 44. Qd3 {[%emt 0:00:02]} Qc5 {[%emt 0:00:08]} 45. Nd1 {[%emt 0:00:01]} Qg1 {[%emt 0:00:03]} 46. Qf3 {[%emt 0:00:02]} Qh2+ {[%emt 0:00:06]} 47. Nf2 {[%emt 0:00:01]} Bxf2 {[%emt 0:00:02]} 48. Qxf2 {[%emt 0:00:01]} Qxh3 {[%emt 0:00:05]} 49. Qa7+ {[%emt 0:00:01]} Kh6 {[%emt 0:00:01]} 50. Qxa5 {[%emt 0:00:05]} Qxg4+ {[%emt 0:00:02]} 51. Kf1 {[%emt 0:00:03]} Qd1+ {[%emt 0:00:02]} 52. Be1 f3 {[%emt 0:00:03]} 53. Qb6 {[%emt 0:00:04]} Qe2+ {[%emt 0:00:02]} 54. Kg1 {[%emt 0:00:03]} Qg2# {[%emt 0:00:01]} 0-1

[Event "3rd FIDE WCCC Blitz G12 2019"]
[Site "Minsk"]
[Date "2019.08.18"]
[Round "5.2"]
[White "Nguyen, Le Cam Hien"]
[Black "Kaldarova, Ayaulym"]
[Result "1/2-1/2"]
[ECO "C00"]
[WhiteElo "1579"]
[BlackElo "1476"]
[Annotator "NA"]
[PlyCount "85"]
[EventDate "2019.08.18"]
[EventType "swiss"]
[EventCountry "BLR"]
[SourceTitle "playchess.com"]
[Source "ChessBase"]
[SourceQuality "1"]
[TimeControl "300+2"]

1. e4 {[%emt 0:00:00]} e6 {[%emt 0:00:00]} 2. d3 {[%emt 0:00:02]} c5 {[%emt 0:00:00]} 3. g3 {[%emt 0:00:03]} Nc6 {[%emt 0:00:02]} 4. Bg2 {[%emt 0:00:02]} d5 {[%emt 0:00:01]} 5. Nd2 {[%emt 0:00:05]} Nf6 {[%emt 0:00:03]} 6. f4 {[%emt 0:00:04]} g6 {[%emt 0:00:04]} 7. e5 {[%emt 0:00:06]} Nd7 {[%emt 0:00:01]} 8. Ngf3 {[%emt 0:00:06]} Bg7 {[%emt 0:00:01]} 9. O-O {[%emt 0:00:03]} O-O {[%emt 0:00:01]} 10. c3 {[%emt 0:00:02]} d4 {[%emt 0:00:04]} 11. c4 {[%emt 0:00:04]} Qc7 {[%emt 0:00:26]} 12. Ne4 {[%emt 0:00:05]} Ne7 {[%emt 0:00:15]} 13. g4 {[%emt 0:00:03]} f5 {[%emt 0:00:06]} 14. exf6 {[%emt 0:00:11]} Nxf6 {[%emt 0:00:01]} 15. Nxf6+ {[%emt 0:00:06]} Bxf6 {[%emt 0:00:02]} 16. Qe2 {[%emt 0:00:08]} Nc6 {[%emt 0:00:07]} 17. h3 {[%emt 0:00:05]} Bd7 {[%emt 0:00:16]} 18. Bd2 {[%emt 0:00:01]} e5 {[%emt 0:00:12]} 19. fxe5 {[%emt 0:00:06]} Nxe5 {[%emt 0:00:02]} 20. Nxe5 Bxe5 {[%emt 0:00:01]} 21. Bd5+ {[%emt 0:00:11]} Kg7 {[%emt 0:00:11]} 22. Bg5 {[%emt 0:00:28]} Rae8 {[%emt 0:00:15]} 23. Qd2 {[%emt 0:00:03]} Kh8 {[%emt 0:00:14]} 24. Bh6 {[%emt 0:00:05]} Bg7 {[%emt 0:00:03]} 25. Bf4 {[%emt 0:00:35]} Be5 {[%emt 0:00:08]} 26. Bxe5+ {[%emt 0:00:03]} Qxe5 {[%emt 0:00:03]} 27. Be4 {[%emt 0:00:08]} Bc6 {[%emt 0:00:09]} 28. Bxc6 {[%emt 0:00:24]} bxc6 {[%emt 0:00:00]} 29. Rxf8+ {[%emt 0:00:09]} Rxf8 {[%emt 0:00:02]} 30. Rf1 {[%emt 0:00:03]} Qg3+ {[%emt 0:00:21]} 31. Qg2 {[%emt 0:00:03]} Rxf1+ {[%emt 0:00:15]} 32. Kxf1 {[%emt 0:00:02]} Qxd3+ {[%emt 0:00:02]} 33. Kg1 {[%emt 0:00:06]} Qxc4 {[%emt 0:00:12]} 34. Qxc6 {[%emt 0:00:04]} Qc1+ {[%emt 0:00:01]} 35. Kg2 {[%emt 0:00:04]} Qxb2+ {[%emt 0:00:06]} 36. Kg3 {[%emt 0:00:01]} Qc3+ {[%emt 0:00:17]} 37. Kg2 {[%emt 0:00:08]} Qb2+ {[%emt 0:00:09]} 38. Kg3 {[%emt 0:00:02]} Qb6 {[%emt 0:00:07]} 39. Qe8+ {[%emt 0:00:04]} Kg7 {[%emt 0:00:01]} 40. Qe7+ {[%emt 0:00:04]} Kg8 {[%emt 0:00:27]} 41. Qe8+ {[%emt 0:00:02]} Kg7 {[%emt 0:00:08]} 42. Qe7+ {[%emt 0:00:01]} Kg8 {[%emt 0:00:16]} 43. Qe8+ {[%emt 0:00:02] Qd8 Qe3} 1/2-1/2

[Event "3rd FIDE WCCC Blitz G12 2019"]
[Site "Minsk"]
[Date "2019.08.18"]
[Round "5.3"]
[White "Szczotka, Klara"]
[Black "Babic, Milana"]
[Result "1-0"]
[ECO "B12"]
[WhiteElo "1732"]
[BlackElo "1689"]
[Annotator "NA"]
[PlyCount "123"]
[EventDate "2019.08.18"]
[EventType "swiss"]
[EventCountry "BLR"]
[SourceTitle "playchess.com"]
[Source "ChessBase"]
[SourceQuality "1"]
[TimeControl "300+2"]

1. e4 {[%emt 0:00:00]} c6 {[%emt 0:00:00]} 2. d4 {[%emt 0:00:00]} d5 {[%emt 0:00:00]} 3. Nd2 {[%emt 0:00:02]} g6 4. Bd3 {[%emt 0:00:02]} Bg7 {[%emt 0:00:00]} 5. Ne2 {[%emt 0:00:02]} dxe4 6. Bxe4 {[%emt 0:00:02]} Nf6 {[%emt 0:00:09]} 7. Bf3 {[%emt 0:00:09]} O-O {[%emt 0:00:04]} 8. O-O {[%emt 0:00:04]} Nbd7 {[%emt 0:00:07]} 9. Nb3 {[%emt 0:00:01]} Re8 {[%emt 0:00:13]} 10. Bf4 {[%emt 0:00:05]} e6 {[%emt 0:00:06]} 11. Qd2 {[%emt 0:00:12]} Nh5 {[%emt 0:00:27]} 12. Bxh5 {[%emt 0:00:05]} gxh5 {[%emt 0:00:01]} 13. Bh6 {[%emt 0:00:09]} Qf6 {[%emt 0:00:03]} 14. Bxg7 {[%emt 0:00:03]} Qxg7 {[%emt 0:00:01]} 15. Nf4 {[%emt 0:00:04]} Nf6 {[%emt 0:00:00]} 16. Qe3 {[%emt 0:00:15]} Ng4 {[%emt 0:00:23]} 17. Qf3 {[%emt 0:00:18]} Qg5 {[%emt 0:00:39]} 18. h3 {[%emt 0:00:17]} Nf6 {[%emt 0:00:01]} 19. Rae1 {[%emt 0:00:08]} e5 {[%emt 0:00:58]} 20. dxe5 {[%emt 0:00:34]} Rxe5 {[%emt 0:00:01]} 21. Rxe5 Qxe5 {[%emt 0:00:01]} 22. Qg3+ {[%emt 0:00:14]} Kh8 {[%emt 0:00:02]} 23. Ng6+ {[%emt 0:00:02]} hxg6 {[%emt 0:00:03]} 24. Qxe5 {[%emt 0:00:01]} Kg7 {[%emt 0:00:00]} 25. Nd4 {[%emt 0:00:04]} Bd7 {[%emt 0:00:07]} 26. Qc7 {[%emt 0:00:08]} Bf5 {[%emt 0:00:07]} 27. Nxf5+ gxf5 {[%emt 0:00:01]} 28. Qxc6 {[%emt 0:00:03]} Re8 29. Qxb7 {[%emt 0:00:04]} Re2 {[%emt 0:00:02]} 30. Qf3 {[%emt 0:00:03]} Rxc2 {[%emt 0:00:03]} 31. Qxf5 {[%emt 0:00:01]} Rc6 {[%emt 0:00:08]} 32. Rd1 {[%emt 0:00:08]} h4 {[%emt 0:00:07]} 33. Qg5+ {[%emt 0:00:02]} Kf8 {[%emt 0:00:02]} 34. Rd8+ {[%emt 0:00:03]} Ke7 {[%emt 0:00:01]} 35. Rd4 {[%emt 0:00:17]} Re6 {[%emt 0:00:07]} 36. Rxh4 {[%emt 0:00:10]} Re1+ {[%emt 0:00:01]} 37. Kh2 {[%emt 0:00:01]} Re6 {[%emt 0:00:07]} 38. Qc5+ {[%emt 0:00:03]} Ke8 {[%emt 0:00:22]} 39. Rh8+ {[%emt 0:00:01]} Kd7 40. Rc8 {[%emt 0:00:07]} Ne8 {[%emt 0:00:12]} 41. Rxe8 Rxe8 {[%emt 0:00:02]} 42. Qb5+ {[%emt 0:00:18]} Kd8 {[%emt 0:00:00]} 43. Qxe8+ {[%emt 0:00:02]} Kxe8 {[%emt 0:00:01]} 44. Kg3 {[%emt 0:00:01]} Ke7 {[%emt 0:00:00]} 45. Kf4 {[%emt 0:00:00]} Ke6 {[%emt 0:00:01]} 46. g4 {[%emt 0:00:02]} Kf6 {[%emt 0:00:01]} 47. h4 {[%emt 0:00:01]} Kg6 {[%emt 0:00:01]} 48. h5+ {[%emt 0:00:01]} Kh6 {[%emt 0:00:01]} 49. Kf5 {[%emt 0:00:00]} Kg7 {[%emt 0:00:02]} 50. g5 {[%emt 0:00:01]} a5 {[%emt 0:00:01]} 51. f4 {[%emt 0:00:02]} a4 {[%emt 0:00:01]} 52. a3 {[%emt 0:00:01]} Kg8 {[%emt 0:00:01]} 53. Kf6 {[%emt 0:00:01]} Kf8 {[%emt 0:00:01]} 54. h6 {[%emt 0:00:01]} Kg8 {[%emt 0:00:00]} 55. f5 {[%emt 0:00:01]} Kh7 {[%emt 0:00:05]} 56. g6+ {[%emt 0:00:07]} fxg6 57. fxg6+ {[%emt 0:00:01]} Kg8 {[%emt 0:00:10]} 58. h7+ {[%emt 0:00:02]} Kh8 {[%emt 0:00:01]} 59. g7+ {[%emt 0:00:05]} Kxh7 {[%emt 0:00:01]} 60. Kf7 {[%emt 0:00:01]} Kh6 {[%emt 0:00:01]} 61. g8=Q {[%emt 0:00:02]} Kh5 {[%emt 0:00:01]} 62. Qg3 1-0

[Event "3rd FIDE WCCC Blitz G12 2019"]
[Site "Minsk"]
[Date "2019.08.18"]
[Round "5.4"]
[White "Lomakina, Anzhelika"]
[Black "Shubenkova, Veronika"]
[Result "1/2-1/2"]
[ECO "B19"]
[WhiteElo "1732"]
[BlackElo "1740"]
[Annotator "NA"]
[PlyCount "113"]
[EventDate "2019.08.18"]
[EventType "swiss"]
[EventCountry "BLR"]
[SourceTitle "playchess.com"]
[Source "ChessBase"]
[SourceQuality "1"]
[TimeControl "300+2"]

1. e4 {[%emt 0:00:00]} c6 {[%emt 0:00:00]} 2. d4 {[%emt 0:00:00]} d5 {[%emt 0:00:00]} 3. Nd2 {[%emt 0:00:01]} dxe4 {[%emt 0:00:03]} 4. Nxe4 {[%emt 0:00:01]} Bf5 {[%emt 0:00:01]} 5. Ng3 {[%emt 0:00:00]} Bg6 {[%emt 0:00:00]} 6. h4 {[%emt 0:00:01]} h6 {[%emt 0:00:01]} 7. Nf3 {[%emt 0:00:01]} Nd7 {[%emt 0:00:01]} 8. h5 {[%emt 0:00:01]} Bh7 {[%emt 0:00:01]} 9. Bd3 {[%emt 0:00:01]} Bxd3 {[%emt 0:00:01]} 10. Qxd3 {[%emt 0:00:01]} e6 {[%emt 0:00:04]} 11. Bd2 {[%emt 0:00:06]} Ngf6 {[%emt 0:00:02]} 12. O-O-O {[%emt 0:00:03]} Be7 {[%emt 0:00:14]} 13. Kb1 {[%emt 0:00:02]} a5 {[%emt 0:00:02]} 14. Ne4 {[%emt 0:00:38]} Nxe4 15. Qxe4 Nf6 {[%emt 0:00:08]} 16. Qe2 {[%emt 0:00:04]} b5 {[%emt 0:00:06]} 17. Ne5 {[%emt 0:00:24]} Qd5 {[%emt 0:00:03]} 18. g4 {[%emt 0:01:00]} Ne4 {[%emt 0:00:23]} 19. Bc1 {[%emt 0:00:44]} a4 {[%emt 0:00:19]} 20. Qf3 {[%emt 0:00:34]} Bf6 {[%emt 0:00:19]} 21. Rhe1 {[%emt 0:00:35]} Bxe5 {[%emt 0:00:16]} 22. Qxe4 {[%emt 0:00:01]} Bf6 {[%emt 0:00:19]} 23. Qxd5 {[%emt 0:00:09]} cxd5 {[%emt 0:00:01]} 24. f4 {[%emt 0:00:24]} Kd7 {[%emt 0:00:15]} 25. Re2 {[%emt 0:00:26]} Rac8 {[%emt 0:00:12]} 26. b3 {[%emt 0:00:18]} axb3 {[%emt 0:00:02]} 27. axb3 {[%emt 0:00:01]} Ra8 {[%emt 0:00:10]} 28. Bb2 {[%emt 0:00:01]} Rhc8 {[%emt 0:00:13]} 29. Rf1 {[%emt 0:00:07]} Rc6 {[%emt 0:00:03]} 30. f5 {[%emt 0:00:01]} Rac8 {[%emt 0:00:12]} 31. fxe6+ {[%emt 0:00:03]} Rxe6 {[%emt 0:00:09]} 32. Rxe6 {[%emt 0:00:05]} fxe6 {[%emt 0:00:02]} 33. Re1 {[%emt 0:00:02]} Re8 {[%emt 0:00:07]} 34. Kc1 {[%emt 0:00:04]} Kd6 {[%emt 0:00:02]} 35. Kd2 {[%emt 0:00:03]} e5 {[%emt 0:00:21]} 36. dxe5+ {[%emt 0:00:04]} Bxe5 {[%emt 0:00:02]} 37. Ba3+ {[%emt 0:00:01]} Kc6 {[%emt 0:00:06]} 38. Kd3 {[%emt 0:00:01]} Re6 {[%emt 0:00:10]} 39. c4 {[%emt 0:00:03]} bxc4+ {[%emt 0:00:12]} 40. bxc4 {[%emt 0:00:01]} dxc4+ {[%emt 0:00:38]} 41. Kxc4 {[%emt 0:00:01]} Re8 {[%emt 0:00:21]} 42. Re2 {[%emt 0:00:04]} Kd7 {[%emt 0:00:25]} 43. Kd5 {[%emt 0:00:02]} Bf6 {[%emt 0:00:02]} 44. Rxe8 {[%emt 0:00:03]} Kxe8 {[%emt 0:00:01]} 45. Ke6 {[%emt 0:00:01]} Bd4 {[%emt 0:00:04]} 46. Bd6 {[%emt 0:00:02]} Bc3 {[%emt 0:00:03]} 47. Bc5 {[%emt 0:00:01]} Bb2 {[%emt 0:00:02]} 48. Bb4 {[%emt 0:00:01]} Bd4 {[%emt 0:00:02]} 49. Ba3 {[%emt 0:00:02]} Bc3 {[%emt 0:00:01]} 50. Bc5 {[%emt 0:00:01]} Bb2 {[%emt 0:00:01]} 51. Bd6 {[%emt 0:00:00]} Bd4 {[%emt 0:00:01]} 52. Bb4 {[%emt 0:00:03]} Bb2 {[%emt 0:00:02]} 53. Bc5 {[%emt 0:00:01]} Bc3 {[%emt 0:00:00]} 54. Bd6 {[%emt 0:00:03]} Bd4 {[%emt 0:00:02]} 55. Bb4 {[%emt 0:00:02]} Bb2 {[%emt 0:00:01]} 56. Bd6 {[%emt 0:00:02]} Bc3 {[%emt 0:00:01]} 57. Bc5 {[%emt 0:00:07]} 1/2-1/2

[Event "3rd FIDE WCCC Blitz G12 2019"]
[Site "Minsk"]
[Date "2019.08.18"]
[Round "5.5"]
[White "Zhapova, Yana"]
[Black "Kirdyashkina, Ekaterina"]
[Result "1-0"]
[ECO "C68"]
[WhiteElo "1809"]
[BlackElo "1691"]
[Annotator "NA"]
[PlyCount "107"]
[EventDate "2019.08.18"]
[EventType "swiss"]
[EventCountry "BLR"]
[SourceTitle "playchess.com"]
[Source "ChessBase"]
[SourceQuality "1"]
[TimeControl "300+2"]

1. e4 {[%emt 0:00:00]} e5 {[%emt 0:00:02]} 2. Nf3 {[%emt 0:00:00]} Nc6 {[%emt 0:00:02]} 3. Bb5 {[%emt 0:00:02]} a6 {[%emt 0:00:00]} 4. Bxc6 {[%emt 0:00:01]} dxc6 {[%emt 0:00:02]} 5. O-O {[%emt 0:00:03]} Bd6 {[%emt 0:00:03]} 6. d4 {[%emt 0:00:01]} exd4 {[%emt 0:00:04]} 7. Qxd4 {[%emt 0:00:01]} f6 {[%emt 0:00:15]} 8. Be3 {[%emt 0:00:21]} Ne7 {[%emt 0:00:18]} 9. Nc3 {[%emt 0:00:02]} O-O {[%emt 0:00:07]} 10. Rad1 {[%emt 0:00:03]} Bg4 {[%emt 0:00:03]} 11. Qc4+ {[%emt 0:00:43]} Kh8 {[%emt 0:00:07]} 12. e5 {[%emt 0:00:05]} Bxf3 {[%emt 0:00:05]} 13. exd6 {[%emt 0:00:05]} Bxd1 {[%emt 0:00:26]} 14. dxe7 {[%emt 0:00:03]} Qxe7 {[%emt 0:00:03]} 15. Rxd1 {[%emt 0:00:29]} Rfe8 {[%emt 0:00:08]} 16. h3 {[%emt 0:00:10]} Rad8 {[%emt 0:00:19]} 17. Re1 {[%emt 0:00:41]} f5 {[%emt 0:00:41]} 18. Ne2 {[%emt 0:00:11]} Qf6 {[%emt 0:00:07]} 19. c3 {[%emt 0:00:14]} b5 {[%emt 0:00:11]} 20. Qf4 {[%emt 0:00:03]} Qf7 {[%emt 0:00:14]} 21. Nd4 {[%emt 0:00:15]} Qxa2 {[%emt 0:00:14]} 22. Qxc7 {[%emt 0:01:00]} Qd5 {[%emt 0:01:14]} 23. Qf4 {[%emt 0:00:37]} c5 {[%emt 0:00:21]} 24. Nf3 {[%emt 0:00:03]} a5 {[%emt 0:00:05]} 25. Ng5 {[%emt 0:00:12]} h6 {[%emt 0:00:05]} 26. Qh4 {[%emt 0:00:10]} Kg8 {[%emt 0:00:06]} 27. Nf3 {[%emt 0:00:02]} b4 {[%emt 0:00:02]} 28. cxb4 {[%emt 0:00:03]} cxb4 {[%emt 0:00:01]} 29. Nd4 {[%emt 0:00:05]} Qf7 {[%emt 0:00:05]} 30. Qf4 {[%emt 0:00:10]} g5 {[%emt 0:00:08]} 31. Qxf5 {[%emt 0:00:02]} Rxd4 {[%emt 0:00:01]} 32. Qxf7+ {[%emt 0:00:03]} Kxf7 {[%emt 0:00:01]} 33. Ra1 {[%emt 0:00:01]} Rd5 {[%emt 0:00:02]} 34. Rc1 {[%emt 0:00:02]} Re7 {[%emt 0:00:01]} 35. Bb6 {[%emt 0:00:01]} Rb5 {[%emt 0:00:02]} 36. Be3 a4 {[%emt 0:00:02]} 37. Ra1 {[%emt 0:00:04]} Ra5 {[%emt 0:00:01]} 38. Kf1 {[%emt 0:00:01]} a3 {[%emt 0:00:01]} 39. bxa3 {[%emt 0:00:01]} Rxa3 {[%emt 0:00:01]} 40. Rb1 {[%emt 0:00:02]} b3 {[%emt 0:00:01]} 41. Bc5 {[%emt 0:00:02]} Rea7 {[%emt 0:00:03]} 42. Bxa7 {[%emt 0:00:02]} Rxa7 {[%emt 0:00:02]} 43. Rxb3 {[%emt 0:00:01]} Ra1+ {[%emt 0:00:02]} 44. Ke2 {[%emt 0:00:00]} Ra2+ {[%emt 0:00:01]} 45. Kf3 {[%emt 0:00:01]} Kf6 {[%emt 0:00:01]} 46. g3 {[%emt 0:00:03]} Kg6 {[%emt 0:00:01]} 47. Rb6+ {[%emt 0:00:02]} Kg7 {[%emt 0:00:02]} 48. Kg2 {[%emt 0:00:02]} Rc2 {[%emt 0:00:02]} 49. Ra6 {[%emt 0:00:01]} Rb2 {[%emt 0:00:01]} 50. Rc6 {[%emt 0:00:02]} Ra2 {[%emt 0:00:01]} 51. h4 {[%emt 0:00:03]} g4 {[%emt 0:00:05]} 52. h5 {[%emt 0:00:08]} Ra5 {[%emt 0:00:01]} 53. Rc4 {[%emt 0:00:02]} Rxh5 {[%emt 0:00:04]} 54. Rf4 {[%emt 0:00:00]} 1-0